fUSD/lending_fUSD_20240617
["ID","MTS","AMOUNT","RATE_DAILY","PERIOD"]
[329748051,1718645447381,-500.0,0.00021917,2]
[329748052,1718645447391,-1207.12,0.00021917,2]
[329748053,1718645447400,-500.0,0.00021917,2]
[329748054,1718645447410,-500.0,0.00021917,2]
[329748055,1718645447420,-500.0,0.00021917,2]
[329748056,1718645447429,-500.0,0.00021917,2]
[329748057,1718645447438,-765.01,0.00021917,2]
[329748058,1718645447448,-500.0,0.00021917,2]
[329748059,1718645447458,-500.0,0.00021917,2]
[329748060,1718645447468,-500.0,0.00021917,2]
[329748061,1718645447477,-507.74,0.00021917,2]
[329748062,1718645447487,-500.0,0.00021917,2]
[329748063,1718645447497,-500.0,0.00021917,2]
[329748064,1718645447506,-500.0,0.00021917,2]
[329748065,1718645447516,-1052.76,0.00021917,2]
[329748066,1718645447525,-500.0,0.00021917,2]
[329748067,1718645447534,-500.0,0.00021917,2]
[329748068,1718645447543,-500.0,0.00021917,2]
[329748069,1718645447553,-500.0,0.00021917,2]
[329748070,1718645447563,-2213.2,0.00021917,2]
[329748071,1718645447573,-796.82,0.00021917,2]
[329748072,1718645447582,-500.0,0.00021917,2]
[329748073,1718645447592,-868.15,0.00021917,2]
[329748074,1718645447601,-500.0,0.00021917,2]
[329748075,1718645447611,-500.0,0.00021917,2]
[329748076,1718645447622,-500.0,0.00021917,2]
[329748077,1718645447631,-500.0,0.00021917,2]
[329748078,1718645447640,-500.0,0.00021917,2]
[329748079,1718645447649,-500.0,0.00021917,2]
[329748080,1718645447659,-500.0,0.00021917,2]
[329748081,1718645447668,-915.74,0.00021917,2]
[329748082,1718645447677,-793.13,0.00021917,2]
[329748083,1718645447687,-500.0,0.00021917,2]
[329748084,1718645447702,-331.31056068,0.00021917,2]
[329748085,1718645447712,-500.0,0.00021917,2]
[329748086,1718645447722,-789.96,0.00021917,2]
[329748087,1718645447731,-500.0,0.00021917,2]
[329748088,1718645447741,-958.9,0.00021917,2]
[329748089,1718645447751,-1767.23,0.00021917,2]
[329748090,1718645447761,-565.37990899,0.00021917,2]
[329748091,1718645447770,-500.0,0.00021917,2]
[329748092,1718645447783,-635.42,0.00021917,2]
[329748093,1718645447794,-500.0,0.00021917,2]
[329748094,1718645447803,-989.84,0.00021917,2]
[329748095,1718645447812,-500.0,0.00021917,2]
[329748096,1718645447822,-500.0,0.00021917,2]
[329748097,1718645447832,-527.09,0.00021917,2]
[329748098,1718645447842,-500.0,0.00021917,2]
[329748099,1718645447851,-500.0,0.00021917,2]
[329748100,1718645447860,-500.0,0.00021917,2]
[329748101,1718645447873,-500.0,0.00021917,2]
[329748102,1718645447883,-500.0,0.00021917,2]
[329748103,1718645447892,-665.42,0.00021917,2]
[329748104,1718645447901,-500.0,0.00021917,2]
[329748105,1718645447911,-500.0,0.00021917,2]
[329748106,1718645447921,-500.0,0.00021917,2]
[329748107,1718645447931,-1168.25,0.00021917,2]
[329748108,1718645447940,-500.0,0.00021917,2]
[329748109,1718645447950,-1160.97,0.00021917,2]
[329748110,1718645447959,-500.0,0.00021917,2]
[329748111,1718645447969,-1828.89,0.00021917,2]
[329748112,1718645447979,-500.0,0.00021917,2]
[329748113,1718645447988,-536.47793633,0.00021917,2]
[329748114,1718645447997,-505.59976299,0.00021917,2]
[329748115,1718645448008,-634.26732777,0.00021917,2]
[329748116,1718645448018,-500.0,0.00021917,2]
[329748117,1718645448027,-926.35,0.00021917,2]
[329748118,1718645448037,-500.0,0.00021917,2]
[329748119,1718645448047,-500.0,0.00021917,2]
[329748120,1718645448056,-710.51,0.00021917,2]
[329748121,1718645448066,-1935.54,0.00021917,2]
[329748122,1718645448076,-500.0,0.00021917,2]
[329748123,1718645448086,-588.43321959,0.00021917,2]
[329748124,1718645448096,-1171.33,0.00021917,2]
[329748125,1718645448105,-500.0,0.00021917,2]
[329748126,1718645448115,-577.06,0.00021917,2]
[329748127,1718645448129,-2000.0,0.00021917,2]
[329748128,1718645448139,-1081.03,0.00021917,2]
[329748129,1718645448150,-500.0,0.00021917,2]
[329748130,1718645448160,-500.0,0.00021917,2]
[329748131,1718645448170,-500.0,0.00021917,2]
[329748132,1718645448179,-500.0,0.00021917,2]
[329748133,1718645448189,-500.0,0.00021917,2]
[329748134,1718645448200,-512.15548,0.00021917,2]
[329748135,1718645448210,-500.0,0.00021917,2]
[329748136,1718645448220,-500.0,0.00021917,2]
[329748137,1718645448229,-500.0,0.00021917,2]
[329748138,1718645448239,-500.0,0.00021917,2]
[329748139,1718645448248,-1945.9,0.00021917,2]
[329748140,1718645448259,-500.0,0.00021917,2]
[329748141,1718645448268,-506.88,0.00021917,2]
[329748142,1718645448277,-500.0,0.00021917,2]
[329748143,1718645448287,-500.0,0.00021917,2]
[329748144,1718645448296,-750.56,0.00021917,2]
[329748145,1718645448306,-500.0,0.00021917,2]
[329748146,1718645448316,-500.0,0.00021917,2]
[329748147,1718645448326,-500.0,0.00021917,2]
[329748148,1718645448336,-500.0,0.00021917,2]
[329748149,1718645448345,-623.57,0.00021917,2]
[329748150,1718645448356,-1283.29,0.00021917,2]
[329748151,1718645448365,-500.0,0.00021917,2]
[329748152,1718645448377,-500.0,0.00021917,2]
[329748153,1718645448387,-186.69350361,0.00021917,2]
[329748154,1718645448397,-1010.04,0.00021917,2]
[329748155,1718645448407,-500.0,0.00021917,2]
[329748156,1718645448416,-1585.81,0.00021917,2]
[329748157,1718645448426,-500.0,0.00021917,2]
[329748158,1718645448436,-500.0,0.00021917,2]
[329748159,1718645448445,-610.58,0.00021917,2]
[329748160,1718645448455,-500.0,0.00021917,2]
[329748161,1718645448465,-500.0,0.00021917,2]
[329748162,1718645448474,-500.0,0.00021917,2]
[329748163,1718645448485,-500.0,0.00021917,2]
[329748164,1718645448494,-500.0,0.00021917,2]
[329748165,1718645448504,-500.0,0.00021917,2]
[329748166,1718645448514,-500.0,0.00021917,2]
[329748167,1718645448523,-667.58,0.00021917,2]
[329748168,1718645448532,-820.97,0.00021917,2]
[329748169,1718645448541,-520.38129528,0.00021917,2]
[329748170,1718645448550,-500.0,0.00021917,2]
[329748171,1718645448560,-1047.56,0.00021917,2]
[329748172,1718645448570,-500.0,0.00021917,2]
[329748173,1718645448580,-500.0,0.00021917,2]
[329748174,1718645448589,-500.0,0.00021917,2]
[329748175,1718645448598,-500.0,0.00021917,2]
[329748176,1718645448608,-500.0,0.00021917,2]
[329748177,1718645448620,-528.98,0.00021917,2]
[329748178,1718645448629,-625.4,0.00021917,2]
[329748179,1718645448638,-500.0,0.00021917,2]
[329748180,1718645448647,-500.0,0.00021917,2]
[329748181,1718645448657,-500.0,0.00021917,2]
[329748182,1718645448666,-500.0,0.00021917,2]
[329748183,1718645448675,-500.0,0.00021917,2]
[329748184,1718645448684,-500.0,0.00021917,2]
[329748185,1718645448694,-519.09,0.00021917,2]
[329748186,1718645448708,-500.0,0.00021917,2]
[329748187,1718645448717,-500.0,0.00021917,2]
[329748188,1718645448728,-1432.38,0.00021917,2]
[329748189,1718645448738,-500.0,0.00021917,2]
[329748190,1718645448747,-500.0,0.00021917,2]
[329748191,1718645448757,-584.63,0.00021917,2]
[329748192,1718645448766,-500.0,0.00021917,2]
[329748193,1718645448777,-420.36374617,0.00021917,2]
[329748194,1718645448786,-1929.35,0.00021917,2]
[329748195,1718645448795,-500.0,0.00021917,2]
[329748196,1718645448804,-500.0,0.00021917,2]
[329748197,1718645448813,-500.0,0.00021917,2]
[329748198,1718645448823,-745.17,0.00021917,2]
[329748199,1718645448832,-1343.17,0.00021917,2]
[329748200,1718645448841,-560.57030248,0.00021917,2]
[329748201,1718645448850,-529.37745702,0.00021917,2]
[329748202,1718645448860,-805.17,0.00021917,2]
[329748203,1718645448872,-500.0,0.00021917,2]
[329748204,1718645448881,-500.0,0.00021917,2]
[329748205,1718645448891,-500.0,0.00021917,2]
[329748206,1718645448900,-913.79,0.00021917,2]
[329748207,1718645448910,-500.0,0.00021917,2]
[329748208,1718645448920,-301.91289755,0.00021917,2]
[329748209,1718645448929,-500.0,0.00021917,2]
[329748210,1718645448938,-1000.0,0.00021917,2]
[329748211,1718645448948,-500.0,0.00021917,2]
[329748212,1718645448957,-500.0,0.00021917,2]
[329748213,1718645448967,-596.38,0.00021917,2]
[329748214,1718645448976,-862.49,0.00021917,2]
[329748215,1718645448986,-515.78517397,0.00021917,2]
[329748216,1718645448995,-500.0,0.00021917,2]
[329748217,1718645449004,-1519.32,0.00021917,2]
[329748218,1718645449014,-500.0,0.00021917,2]
[329748219,1718645449023,-500.0,0.00021917,2]
[329748220,1718645449032,-863.89,0.00021917,2]
[329748221,1718645449041,-572.91017223,0.00021917,2]
[329748222,1718645449050,-500.0,0.00021917,2]
[329748223,1718645449059,-566.59,0.00021917,2]
[329748224,1718645449068,-500.0,0.00021917,2]
[329748225,1718645449078,-837.81,0.00021917,2]
[329748226,1718645449087,-500.0,0.00021917,2]
[329748227,1718645449096,-500.0,0.00021917,2]
[329748228,1718645449106,-178.361187,0.00021917,2]
[329748229,1718645449115,-500.0,0.00021917,2]
[329748230,1718645449127,-500.0,0.00021917,2]
[329748231,1718645449137,-617.68,0.00021917,2]
[329748232,1718645449146,-805.13,0.00021917,2]
[329748233,1718645449156,-500.0,0.00021917,2]
[329748234,1718645449165,-527.12,0.00021917,2]
[329748235,1718645449174,-877.34,0.00021917,2]
[329748236,1718645449184,-500.0,0.00021917,2]
[329748237,1718645449193,-3778.97,0.00021917,2]
[329748238,1718645449202,-500.0,0.00021917,2]
[329748239,1718645449212,-500.0,0.00021917,2]
[329748240,1718645449221,-500.0,0.00021917,2]
[329748241,1718645449235,-500.0,0.00021917,2]
[329748242,1718645449245,-500.0,0.00021917,2]
[329748243,1718645449254,-500.0,0.00021917,2]
[329748244,1718645449264,-500.0,0.00021917,2]
[329748245,1718645449274,-500.0,0.00021917,2]
[329748246,1718645449283,-500.0,0.00021917,2]
[329748247,1718645449293,-502.4559262,0.00021917,2]
[329748248,1718645449303,-500.0,0.00021917,2]
[329748249,1718645449313,-500.0,0.00021917,2]
[329748250,1718645449323,-1844.99,0.00021917,2]
[329748251,1718645449333,-613.41,0.00021917,2]
[329748252,1718645449344,-500.0,0.00021917,2]
[329748253,1718645449354,-500.0,0.00021917,2]
[329748254,1718645449367,-622.15,0.00021917,2]
[329748255,1718645449379,-672.27,0.00021917,2]
[329748256,1718645449389,-500.0,0.00021917,2]
[329748257,1718645449399,-519.96,0.00021917,2]
[329748258,1718645449408,-500.0,0.00021917,2]
[329748259,1718645449418,-562.5,0.00021917,2]
[329748260,1718645449428,-500.0,0.00021917,2]
[329748261,1718645449437,-618.69,0.00021917,2]
[329748262,1718645449446,-531.3562581,0.00021917,2]
[329748263,1718645449456,-500.0,0.00021917,2]
[329748264,1718645449467,-500.0,0.00021917,2]
[329748265,1718645449476,-500.0,0.00021917,2]
[329748266,1718645449486,-500.0,0.00021917,2]
[329748267,1718645449495,-906.8,0.00021917,2]
[329748268,1718645449506,-673.56,0.00021917,2]
[329748269,1718645449515,-500.0,0.00021917,2]
[329748270,1718645449524,-548.67,0.00021917,2]
[329748271,1718645449533,-522.01,0.00021917,2]
[329748272,1718645449543,-500.0,0.00021917,2]
[329748273,1718645449552,-500.0,0.00021917,2]
[329748274,1718645449561,-500.0,0.00021917,2]
[329748275,1718645449571,-500.0,0.00021917,2]
[329748276,1718645449580,-500.0,0.00021917,2]
[329748277,1718645449589,-500.0,0.00021917,2]
[329748278,1718645449599,-500.0,0.00021917,2]
[329748279,1718645449608,-500.0,0.00021917,2]
[329748280,1718645449620,-513.95,0.00021917,2]
[329748281,1718645449629,-500.0,0.00021917,2]
[329748282,1718645449638,-501.08,0.00021917,2]
[329748283,1718645449647,-500.0,0.00021917,2]
[329748284,1718645449657,-500.0,0.00021917,2]
[329748285,1718645449666,-500.0,0.00021917,2]
[329748286,1718645449676,-500.0,0.00021917,2]
[329748287,1718645449686,-662.05,0.00021917,2]
[329748288,1718645449698,-500.0,0.00021917,2]
[329748289,1718645449709,-500.0,0.00021917,2]
[329748290,1718645449718,-222.26008358,0.00021917,2]
[329748291,1718645449727,-500.0,0.00021917,2]
[329748292,1718645449736,-500.0,0.00021917,2]
[329748293,1718645449747,-500.0,0.00021917,2]
[329748294,1718645449756,-500.0,0.00021917,2]
[329748295,1718645449766,-500.0,0.00021917,2]
[329748296,1718645449776,-500.0,0.00021917,2]
[329748297,1718645449785,-2336.76,0.00021917,2]
[329748298,1718645449794,-500.0,0.00021917,2]
[329748299,1718645449803,-506.65413799,0.00021917,2]
[329748300,1718645449813,-500.0,0.00021917,2]
[329748301,1718645449822,-500.0,0.00021917,2]
[329748302,1718645449831,-500.0,0.00021917,2]
[329748303,1718645449841,-894.01,0.00021917,2]
[329748304,1718645449850,-500.0,0.00021917,2]
[329748305,1718645449859,-500.0,0.00021917,2]
[329748306,1718645449870,-1457.9,0.00021917,2]
[329748307,1718645449879,-500.0,0.00021917,2]
[329748308,1718645449888,-496.923316,0.00021917,2]
[329748309,1718645449897,-500.0,0.00021917,2]
[329748310,1718645449907,-500.0,0.00021917,2]
[329748311,1718645449916,-799.47,0.00021917,2]
[329748312,1718645449925,-500.0,0.00021917,2]
[329748313,1718645449935,-500.0,0.00021917,2]
[329748314,1718645449944,-500.0,0.00021917,2]
[329748315,1718645449953,-500.0,0.00021917,2]
[329748316,1718645449962,-500.0,0.00021917,2]
[329748317,1718645449971,-513.50227496,0.00021917,2]
[329748318,1718645449981,-516.46597614,0.00021917,2]
[329748319,1718645449990,-500.0,0.00021917,2]
[329748320,1718645449999,-500.0,0.00021917,2]
[329748321,1718645450009,-500.0,0.00021917,2]
[329748322,1718645450018,-561.75,0.00021917,2]
[329748323,1718645450027,-500.0,0.00021917,2]
[329748324,1718645450037,-556.64,0.00021917,2]
[329748325,1718645450046,-1037.93,0.00021917,2]
[329748326,1718645450055,-500.0,0.00021917,2]
[329748327,1718645450064,-907.93,0.00021917,2]
[329748328,1718645450074,-500.0,0.00021917,2]
[329748329,1718645450083,-500.0,0.00021917,2]
[329748330,1718645450093,-558.46,0.00021917,2]
[329748331,1718645450102,-500.0,0.00021917,2]
[329748332,1718645450112,-698.43,0.00021917,2]
[329748333,1718645450123,-500.0,0.00021917,2]
[329748334,1718645450132,-780.67,0.00021917,2]
[329748335,1718645450142,-933.92,0.00021917,2]
[329748336,1718645450152,-500.0,0.00021917,2]
[329748337,1718645450162,-500.0,0.00021917,2]
[329748338,1718645450171,-500.0,0.00021917,2]
[329748339,1718645450180,-500.0,0.00021917,2]
[329748340,1718645450189,-1534.03,0.00021917,2]
[329748341,1718645450198,-500.0,0.00021917,2]
[329748342,1718645450207,-500.0,0.00021917,2]
[329748343,1718645450217,-500.0,0.00021917,2]
[329748344,1718645450226,-500.0,0.00021917,2]
[329748345,1718645450236,-500.0,0.00021917,2]
[329748346,1718645450245,-418.05519353,0.00021917,2]
[329748347,1718645450255,-682.88,0.00021917,2]
[329748348,1718645450264,-1602.62,0.00021917,2]
[329748349,1718645450274,-500.0,0.00021917,2]
[329748350,1718645450283,-500.0,0.00021917,2]
[329748351,1718645450293,-794.36,0.00021917,2]
[329748352,1718645450303,-500.0,0.00021917,2]
[329748353,1718645450312,-500.0,0.00021917,2]
[329748354,1718645450321,-500.0,0.00021917,2]
[329748355,1718645450330,-500.0,0.00021917,2]
[329748356,1718645450340,-500.0,0.00021917,2]
[329748357,1718645450349,-500.0,0.00021917,2]
[329748358,1718645450359,-757.02,0.00021917,2]
[329748359,1718645450370,-500.0,0.00021917,2]
[329748360,1718645450379,-848.61,0.00021917,2]
[329748361,1718645450388,-616.69,0.00021917,2]
[329748362,1718645450398,-500.0,0.00021917,2]
[329748363,1718645450406,-716.64,0.00021917,2]
[329748364,1718645450415,-500.0,0.00021917,2]
[329748365,1718645450424,-500.0,0.00021917,2]
[329748366,1718645450433,-500.0,0.00021917,2]
[329748367,1718645450443,-500.0,0.00021917,2]
[329748368,1718645450452,-500.0,0.00021917,2]
[329748369,1718645450461,-500.0,0.00021917,2]
[329748370,1718645450470,-515.55,0.00021917,2]
[329748371,1718645450479,-1552.58,0.00021917,2]
[329748372,1718645450489,-527.52,0.00021917,2]
[329748373,1718645450498,-500.0,0.00021917,2]
[329748374,1718645450507,-665.61,0.00021917,2]
[329748375,1718645450516,-806.51,0.00021917,2]
[329748376,1718645450526,-500.0,0.00021917,2]
[329748377,1718645450535,-500.0,0.00021917,2]
[329748378,1718645450545,-500.0,0.00021917,2]
[329748379,1718645450554,-500.0,0.00021917,2]
[329748380,1718645450562,-500.0,0.00021917,2]
[329748381,1718645450572,-500.0,0.00021917,2]
[329748382,1718645450764,-512.60223329,0.00021917,2]
[329748383,1718645450774,-500.0,0.00021917,2]
[329748384,1718645450786,-500.0,0.00021917,2]
[329748385,1718645450797,-2000.0,0.00021917,2]
[329748386,1718645450806,-530.47,0.00021917,2]
[329748387,1718645450815,-500.0,0.00021917,2]
[329748388,1718645450824,-500.0,0.00021917,2]
[329748389,1718645450834,-500.0,0.00021917,2]
[329748390,1718645450843,-500.0,0.00021917,2]
[329748391,1718645450852,-1442.81,0.00021917,2]
[329748392,1718645450862,-500.0,0.00021917,2]
[329748393,1718645450874,-500.0,0.00021917,2]
[329748394,1718645450883,-200.0,0.00021917,2]
[329748395,1718645450891,-500.0,0.00021917,2]
[329748396,1718645450900,-2577.51,0.00021917,2]
[329748397,1718645450909,-1279.7,0.00021917,2]
[329748398,1718645450918,-573.89,0.00021917,2]
[329748399,1718645450927,-500.0,0.00021917,2]
[329748400,1718645450936,-500.0,0.00021917,2]
[329748401,1718645450947,-500.0,0.00021917,2]
[329748402,1718645450955,-500.0,0.00021917,2]
[329748403,1718645450965,-500.0,0.00021917,2]
[329748404,1718645450975,-500.0,0.00021917,2]
[329748405,1718645450984,-1637.96,0.00021917,2]
[329748406,1718645450994,-500.0,0.00021917,2]
[329748407,1718645451003,-500.0,0.00021917,2]
[329748408,1718645451013,-500.0,0.00021917,2]
[329748409,1718645451023,-500.0,0.00021917,2]
[329748410,1718645451032,-497.07770603,0.00021917,2]
[329748411,1718645451042,-500.0,0.00021917,2]
[329748412,1718645451052,-605.42816142,0.00021917,2]
[329748413,1718645451061,-471.51416926,0.00021917,2]
[329748414,1718645451071,-500.0,0.00021917,2]
[329748415,1718645451081,-500.0,0.00021917,2]
[329748416,1718645451091,-794.41,0.00021917,2]
[329748417,1718645451100,-500.0,0.00021917,2]
[329748418,1718645451110,-500.0,0.00021917,2]
[329748419,1718645451121,-475.87331522,0.00021917,2]
[329748420,1718645451130,-500.0,0.00021917,2]
[329748421,1718645451139,-787.41,0.00021917,2]
[329748422,1718645451149,-500.0,0.00021917,2]
[329748423,1718645451158,-500.0,0.00021917,2]
[329748424,1718645451168,-500.0,0.00021917,2]
[329748425,1718645451177,-500.0,0.00021917,2]
[329748426,1718645451187,-615.81113109,0.00021917,2]
[329748427,1718645451196,-418.36735395,0.00021917,2]
[329748428,1718645451205,-500.0,0.00021917,2]
[329748429,1718645451214,-500.0,0.00021917,2]
[329748430,1718645451223,-1007.59,0.00021917,2]
[329748431,1718645451232,-500.0,0.00021917,2]
[329748432,1718645451242,-500.0,0.00021917,2]
[329748433,1718645451251,-500.0,0.00021917,2]
[329748434,1718645451261,-500.0,0.00021917,2]
[329748435,1718645451270,-500.0,0.00021917,2]
[329748436,1718645451280,-500.0,0.00021917,2]
[329748437,1718645451289,-451.42199385,0.00021917,2]
[329748438,1718645451299,-967.52,0.00021917,2]
[329748439,1718645451308,-500.0,0.00021917,2]
[329748440,1718645451317,-516.58564948,0.00021917,2]
[329748441,1718645451327,-500.0,0.00021917,2]
[329748442,1718645451336,-615.04,0.00021917,2]
[329748443,1718645451345,-371.67,0.00021917,2]
[329748444,1718645451354,-544.74862309,0.00021917,2]
[329748445,1718645451364,-631.77,0.00021917,2]
[329748446,1718645451375,-500.0,0.00021917,2]
[329748447,1718645451385,-500.0,0.00021917,2]
[329748448,1718645451394,-500.0,0.00021917,2]
[329748449,1718645451404,-500.0,0.00021917,2]
[329748450,1718645451413,-500.0,0.00021917,2]
[329748451,1718645451422,-500.0,0.00021917,2]
[329748452,1718645451431,-500.0,0.00021917,2]
[329748453,1718645451440,-704.31,0.00021917,2]
[329748454,1718645451449,-863.51,0.00021917,2]
[329748455,1718645451462,-500.0,0.00021917,2]
[329748456,1718645451471,-387.91492047,0.00021917,2]
[329748457,1718645451480,-949.78,0.00021917,2]
[329748458,1718645451489,-500.0,0.00021917,2]
[329748459,1718645451499,-739.09,0.00021917,2]
[329748460,1718645451507,-956.12,0.00021917,2]
[329748461,1718645451517,-497.02918034,0.00021917,2]
[329748462,1718645451526,-500.0,0.00021917,2]
[329748463,1718645451535,-604.87,0.00021917,2]
[329748464,1718645451545,-500.0,0.00021917,2]
[329748465,1718645451554,-696.06,0.00021917,2]
[329748466,1718645451563,-638.19,0.00021917,2]
[329748467,1718645451572,-500.0,0.00021917,2]
[329748468,1718645451581,-500.0,0.00021917,2]
[329748469,1718645451591,-500.0,0.00021917,2]
[329748470,1718645451600,-500.0,0.00021917,2]
[329748471,1718645451609,-500.0,0.00021917,2]
[329748472,1718645451619,-500.0,0.00021917,2]
[329748473,1718645451628,-742.13,0.00021917,2]
[329748474,1718645451637,-500.57798524,0.00021917,2]
[329748475,1718645451646,-1212.82,0.00021917,2]
[329748476,1718645451656,-625.18,0.00021917,2]
[329748477,1718645451665,-500.0,0.00021917,2]
[329748478,1718645451674,-500.0,0.00021917,2]
[329748479,1718645451683,-500.0,0.00021917,2]
[329748480,1718645451693,-900.64,0.00021917,2]
[329748481,1718645451707,-846.19,0.00021917,2]
[329748482,1718645451717,-500.0,0.00021917,2]
[329748483,1718645451726,-501.51686404,0.00021917,2]
[329748484,1718645451735,-500.0,0.00021917,2]
[329748485,1718645451744,-500.0,0.00021917,2]
[329748486,1718645451753,-500.0,0.00021917,2]
[329748487,1718645451763,-500.0,0.00021917,2]
[329748488,1718645451771,-500.0,0.00021917,2]
[329748489,1718645451783,-3178.78,0.00021917,2]
[329748490,1718645451794,-500.0,0.00021917,2]
[329748491,1718645451803,-500.0,0.00021917,2]
[329748492,1718645451812,-816.41,0.00021917,2]
[329748493,1718645451821,-1590.28,0.00021917,2]
[329748494,1718645451831,-685.24,0.00021917,2]
[329748495,1718645451840,-500.0,0.00021917,2]
[329748496,1718645451849,-500.0,0.00021917,2]
[329748497,1718645451858,-500.0,0.00021917,2]
[329748498,1718645451869,-523.16593329,0.00021917,2]
[329748499,1718645451879,-2793.18,0.00021917,2]
[329748500,1718645451888,-261.43610471,0.00021917,2]
[329748501,1718645451898,-500.0,0.00021917,2]
[329748502,1718645451907,-500.0,0.00021917,2]
[329748503,1718645451916,-500.0,0.00021917,2]
[329748504,1718645451926,-500.0,0.00021917,2]
[329748505,1718645451935,-500.0,0.00021917,2]
[329748506,1718645451944,-500.0,0.00021917,2]
[329748507,1718645451954,-816.51,0.00021917,2]
[329748508,1718645451963,-500.0,0.00021917,2]
[329748509,1718645451972,-500.0,0.00021917,2]
[329748510,1718645451981,-500.0,0.00021917,2]
[329748511,1718645451990,-500.0,0.00021917,2]
[329748512,1718645452000,-500.0,0.00021917,2]
[329748513,1718645452009,-500.0,0.00021917,2]
[329748514,1718645452019,-2911.43,0.00021917,2]
[329748515,1718645452028,-500.0,0.00021917,2]
[329748516,1718645452037,-525.51710162,0.00021917,2]
[329748517,1718645452048,-502.03755289,0.00021917,2]
[329748518,1718645452057,-500.0,0.00021917,2]
[329748519,1718645452067,-500.0,0.00021917,2]
[329748520,1718645452076,-500.0,0.00021917,2]
[329748521,1718645452086,-550.24,0.00021917,2]
[329748522,1718645452096,-500.0,0.00021917,2]
[329748523,1718645452105,-938.12,0.00021917,2]
[329748524,1718645452115,-500.0,0.00021917,2]
[329748525,1718645452126,-1188.23,0.00021917,2]
[329748526,1718645452135,-982.65,0.00021917,2]
[329748527,1718645452145,-3492.34,0.00021917,2]
[329748528,1718645452155,-500.0,0.00021917,2]
[329748529,1718645452164,-500.0,0.00021917,2]
[329748530,1718645452174,-500.0,0.00021917,2]
[329748531,1718645452184,-500.0,0.00021917,2]
[329748532,1718645452194,-11179.5,0.00021917,2]
[329748533,1718645452204,-1597.89,0.00021917,2]
[329748534,1718645452213,-504.39308085,0.00021917,2]
[329748535,1718645452222,-736.42,0.00021917,2]
[329748536,1718645452231,-943.76,0.00021917,2]
[329748537,1718645452240,-500.0,0.00021917,2]
[329748538,1718645452250,-1483.89,0.00021917,2]
[329748539,1718645452259,-500.0,0.00021917,2]
[329748540,1718645452268,-1536.34,0.00021917,2]
[329748541,1718645452277,-2526.88,0.00021917,2]
[329748542,1718645452287,-500.0,0.00021917,2]
[329748543,1718645452296,-500.0,0.00021917,2]
[329748544,1718645452305,-1346.27,0.00021917,2]
[329748545,1718645452314,-550.28,0.00021917,2]
[329748546,1718645452323,-1198.53,0.00021917,2]
[329748547,1718645452332,-500.0,0.00021917,2]
[329748548,1718645452343,-500.0,0.00021917,2]
[329748549,1718645452352,-569.96,0.00021917,2]
[329748550,1718645452361,-232.87623124,0.00021917,2]